fUST/lending_fUST_20250426
["ID","MTS","AMOUNT","RATE_DAILY","PERIOD"]
[359011575,1745631047662,-500.0,0.00016986,2]
[359011576,1745631047673,-500.0,0.00016986,2]
[359011577,1745631047683,-500.0,0.00016986,2]
[359011578,1745631047693,-500.0,0.00016986,2]
[359011579,1745631047703,-500.0,0.00016986,2]
[359011580,1745631047713,-500.0,0.00016986,2]
[359011581,1745631047723,-500.0,0.00016986,2]
[359011582,1745631047734,-696.3,0.00016986,2]
[359011583,1745631047743,-500.0,0.00016986,2]
[359011584,1745631047753,-500.0,0.00016986,2]
[359011585,1745631047762,-1250.23,0.00016986,2]
[359011586,1745631047773,-500.0,0.00016986,2]
[359011587,1745631047783,-1563.76,0.00016986,2]
[359011588,1745631047793,-500.0,0.00016986,2]
[359011589,1745631047803,-170.12,0.00016986,2]
[359011590,1745631047812,-500.0,0.00016986,2]
[359011591,1745631047821,-500.0,0.00016986,2]
[359011592,1745631047831,-500.0,0.00016986,2]
[359011593,1745631047842,-500.0,0.00016986,2]
[359011594,1745631047852,-2789.79,0.00016986,2]
[359011595,1745631047862,-1190.32,0.00016986,2]
[359011596,1745631047872,-500.0,0.00016986,2]
[359011597,1745631047882,-500.0,0.00016986,2]
[359011598,1745631047892,-1480.29,0.00016986,2]
[359011599,1745631047903,-500.0,0.00016986,2]
[359011600,1745631047913,-500.0,0.00016986,2]
[359011601,1745631047923,-500.0,0.00016986,2]
[359011602,1745631047935,-500.0,0.00016986,2]
[359011603,1745631047944,-500.0,0.00016986,2]
[359011604,1745631047954,-1209.47,0.00016986,2]
[359011605,1745631047964,-500.0,0.00016986,2]
[359011606,1745631047973,-500.0,0.00016986,2]
[359011607,1745631047983,-500.0,0.00016986,2]
[359011608,1745631047992,-500.0,0.00016986,2]
[359011609,1745631048001,-896.07,0.00016986,2]
[359011610,1745631048011,-500.0,0.00016986,2]
[359011611,1745631048020,-500.0,0.00016986,2]
[359011612,1745631048030,-500.0,0.00016986,2]
[359011613,1745631048039,-2338.53,0.00016986,2]
[359011614,1745631048049,-645.34954539,0.00016986,2]
[359011646,1745632040164,-439.17319999,0.00015186,2]
[359011647,1745632045092,-200.89962151,0.00015186,2]
[359011648,1745632045118,-1214.96863813,0.00015257,2]
[359011692,1745632232535,-2198.96,0.00015257,2]
[359011695,1745632232548,-605.45,0.00015257,2]
[359011734,1745632238533,-2628.23219521,0.00015257,2]
[359011809,1745632246484,-2397.64809016,0.00015257,2]
[359011810,1745632246495,-264.29292414,0.0001596,2]
[359011811,1745632246505,-160.0,0.00015985,2]
[359011812,1745632246514,-163.7702102,0.00016058,2]
[359011813,1745632246524,-166.77855901,0.00016144,2]
[359011814,1745632246534,-500.0,0.00016144,2]
[359011815,1745632246545,-440.13578787,0.00016144,2]
[359011816,1745632246555,-160.0,0.00016145,2]
[359011817,1745632246564,-420.98395174,0.00016145,2]
[359011818,1745632246574,-160.0,0.00016145,2]
[359011819,1745632246583,-160.0,0.00016145,2]
[359011820,1745632246593,-160.0,0.00016145,2]
[359011821,1745632246603,-313.10658385,0.00016145,2]
[359011822,1745632246612,-12579.26882624,0.00016145,2]
[359011823,1745632246621,-840.21051354,0.00016145,2]
[359011824,1745632246631,-440.98575622,0.00016145,2]
[359011825,1745632246640,-300.0,0.00016145,2]
[359011826,1745632246651,-545.0,0.0001616,2]
[359011827,1745632246661,-2247.0,0.0001616,2]
[359011828,1745632246671,-706.0,0.0001616,2]
[359011829,1745632246680,-403.0,0.0001616,2]
[359011830,1745632246693,-150.12,0.0001616,2]
[359011831,1745632246702,-225.56648155,0.00016164,2]
[359011832,1745632246711,-22453.21562435,0.000162,2]
[359011837,1745632441820,10000.0,0.00023,120]
[359011839,1745632469257,10000.0,0.00027,30]
[359011840,1745632484789,10000.0,0.00023,120]
[359011842,1745632501327,10000.0,0.00027,30]
[359011843,1745632516388,10000.0,0.00023,120]
[359011844,1745632533188,10000.0,0.00023,120]
[359011845,1745632555439,10000.0,0.00023,120]
[359011846,1745632574142,10000.0,0.00023,120]
[359011847,1745632601843,10000.0,0.00027,30]
[359011848,1745632619860,10000.0,0.00027,30]
[359011849,1745632641021,10000.0,0.00023,120]
[359011850,1745632667332,10000.0,0.00023,120]
[359011851,1745632683555,10000.0,0.00023,120]
[359011852,1745632711080,10000.0,0.00023,120]
[359011853,1745632730297,10000.0,0.00027,30]
[359011854,1745632735633,1000.0,0.00027,30]
[359011855,1745632746360,10000.0,0.00023,120]
[359011865,1745632845110,10000.0,0.00023,120]
[359011868,1745632861430,10000.0,0.00023,120]
[359011869,1745632897646,10000.0,0.00027,30]
[359011870,1745632915814,10000.0,0.00023,120]
[359011871,1745632945870,10000.0,0.00023,120]
[359011873,1745632962981,10000.0,0.00023,120]
[359011874,1745632980998,10000.0,0.00027,30]
[359011876,1745632997170,8000.0,0.00023,120]
[359011877,1745633014330,131297.23164132,0.00027,30]
[359011879,1745633230101,-1661.50664994,0.00014336,2]
[359011880,1745633230126,-300.0,0.00014434,2]
[359011881,1745633230149,-500.0,0.00014435,2]
[359011882,1745633230171,-500.0,0.00014435,2]
[359011883,1745633230199,-500.0,0.00014435,2]
[359011884,1745633230220,-503.50559149,0.00014435,2]
[359011885,1745633230249,-500.0,0.00014435,2]
[359011886,1745633230270,-170.66219384,0.00014435,2]
[359011887,1745633230292,-500.0,0.00014435,2]
[359011888,1745633230318,-500.0,0.00014435,2]
[359011889,1745633230341,-535.3369824,0.00014435,2]
[359011890,1745633230367,-500.0,0.00014435,2]
[359011891,1745633230393,-500.0,0.00014435,2]
[359011892,1745633230418,-500.0,0.00014435,2]
[359011893,1745633230446,-500.0,0.00014435,2]
[359011894,1745633230471,-500.0,0.00014435,2]
[359011895,1745633230499,-500.0,0.00014435,2]
[359011896,1745633230538,-500.0,0.00014435,2]
[359011897,1745633230570,-493.91049853,0.00014435,2]
[359011901,1745633360140,-300.0,0.00014433,2]
[359011902,1745633360169,-500.0,0.00014434,2]
[359011903,1745633360194,-500.0,0.00014434,2]
[359011904,1745633360219,-500.0,0.00014434,2]
[359011905,1745633360245,-500.0,0.00014434,2]
[359011906,1745633360269,-500.0,0.00014434,2]
[359011907,1745633360297,-500.0,0.00014434,2]
[359011908,1745633360322,-500.0,0.00014434,2]
[359011909,1745633360347,-500.0,0.00014434,2]
[359011910,1745633360371,-500.0,0.00014434,2]
[359011911,1745633360396,-500.0,0.00014434,2]
[359011912,1745633360421,-500.0,0.00014434,2]
[359011913,1745633360445,-500.0,0.00014434,2]
[359011914,1745633360469,-500.0,0.00014434,2]
[359011915,1745633360493,-500.0,0.00014434,2]
[359011916,1745633360516,-500.0,0.00014434,2]
[359011917,1745633360539,-500.0,0.00014434,2]
[359011918,1745633360562,-500.0,0.00014434,2]
[359011919,1745633360586,-500.0,0.00014434,2]
[359011920,1745633360614,-500.0,0.00014434,2]
[359011921,1745633360641,-448.28086051,0.00014434,2]
[359011922,1745633360663,-170.59299804,0.00014434,2]
[359011923,1745633360685,-244.44830477,0.00014434,2]
[359011924,1745633360708,-500.0,0.00014434,2]
[359011925,1745633360730,-204.04447966,0.00014434,2]
[359011926,1745633360749,-500.0,0.00014434,2]
[359011927,1745633360769,-50000.0,0.00014435,2]
[359011928,1745633360791,-906.0,0.00014436,2]
[359011929,1745633360812,-11003.93368407,0.00014438,2]
[359011935,1745633432652,-300.0,0.00014437,2]
[359011936,1745633432663,-12346.55264892,0.00014438,2]
[359011938,1745633432675,-1549.51366701,0.00014438,2]
[359011939,1745633432686,-180.5335795,0.0001464,2]
[359011940,1745633432695,-164.8698749,0.00015101,2]
[359011941,1745633432705,-420.0,0.0001581,2]
[359011942,1745633432715,-160.0,0.00015984,2]
[359011944,1745633432724,-898.82,0.00016,2]
[359011945,1745633432735,-1000.02,0.000161,2]
[359011946,1745633432745,-196.8414978,0.00016111,2]
[359011947,1745633432755,-160.0,0.00016147,2]
[359011948,1745633432765,-420.98395174,0.00016148,2]
[359011949,1745633432775,-160.0,0.00016148,2]
[359011950,1745633432784,-160.0,0.00016148,2]
[359011951,1745633432794,-160.0,0.00016148,2]
[359011952,1745633432804,-313.10658385,0.00016148,2]
[359011953,1745633432813,-12579.26882624,0.00016148,2]
[359011954,1745633432823,-840.21051354,0.00016148,2]
[359011955,1745633432833,-545.0,0.0001616,2]
[359011956,1745633432842,-2247.0,0.0001616,2]
[359011957,1745633432851,-706.0,0.0001616,2]
[359011958,1745633432861,-403.0,0.0001616,2]
[359011959,1745633432871,-403.0,0.0001616,2]
[359011960,1745633432881,-38820.339338,0.000162,2]
[359011961,1745633432893,-162703.00282119,0.000162,2]
[359011962,1745633432905,-455.42726051,0.000162,2]
[359011990,1745633438560,-500.0,0.00014437,2]
[359011991,1745633438570,-500.0,0.00014437,2]
[359011992,1745633438581,-494.82808605,0.00014437,2]
[359011993,1745633438590,-1453.81831875,0.00016048,2]
[359011994,1745633438600,-171.11381334,0.00016147,2]
[359011996,1745633438610,-342.83113577,0.00016147,2]
[359011999,1745633438619,-500.0,0.00016147,2]
[359012001,1745633438631,-420.98395174,0.00016147,2]
[359012004,1745633438640,-214.4195478,0.00016164,2]
[359012006,1745633438651,-10220.45462229,0.000162,2]
[359012010,1745633438664,-1474.68474239,0.000162,2]
[359012013,1745633438677,-41501.45255995,0.000162,2]
[359012105,1745633440968,-2228.14330932,0.000162,2]
[359012106,1745633440981,-545.1936999,0.000162,2]
[359012108,1745633440994,-84311.95792534,0.000162,2]
[359012139,1745633446665,-72241.91177677,0.000162,2]
[359012155,1745634122534,188.0,0.00025,120]
[359012163,1745634426139,-300.0,0.0001516,2]
[359012164,1745634426175,-500.0,0.00015161,2]
[359012165,1745634426211,-500.0,0.00015161,2]
[359012166,1745634426462,-500.0,0.00015161,2]
[359012167,1745634426504,-500.0,0.00015161,2]
[359012168,1745634426542,-319.61262208,0.00015161,2]
[359012169,1745634426570,-3278.95548833,0.00015162,2]
[359012170,1745634430089,-3996.47611989,0.00015162,2]
[359012171,1745634526235,155.93491966,0.00024,120]
[359012180,1745634631940,-300.0,0.00015161,2]
[359012181,1745634631950,-1200.0,0.00015161,2]
[359012182,1745634631960,-300.0,0.00015161,2]
[359012183,1745634631970,-14505.52418358,0.00015162,2]
[359012184,1745634631999,-3119.0442082,0.00015162,2]
[359012185,1745634632009,-310.316856,0.00015279,2]
[359012187,1745634632020,-198.0,0.00016,2]
[359012188,1745634632030,-198.0,0.00016,2]
[359012189,1745634632040,-436.62303082,0.00016,2]
[359012190,1745634632050,-436.62303082,0.00016,2]
[359012191,1745634632060,-1520.03193095,0.00016076,2]
[359012192,1745634632069,-197.14707969,0.000161,2]
[359012193,1745634632079,-152.0,0.00016164,2]
[359012194,1745634632089,-500.0,0.00016175,2]
[359012195,1745634632098,-571.65876248,0.00016175,2]
[359012196,1745634632108,-436.62303082,0.00016177,2]
[359012197,1745634632118,-909.11816295,0.00016178,2]
[359012198,1745634632128,-198.0,0.000162,2]
[359012199,1745634632139,-205200.44526633,0.000162,2]
[359012200,1745634632151,-162072.1177286,0.000162,2]
[359012280,1745634638330,-655.39645671,0.000162,2]
[359012338,1745634642889,-477.10129815,0.000162,2]
[359012339,1745634642945,-8386.16261688,0.000162,2]
[359012359,1745634645742,-20989.67219374,0.000162,2]
[359012360,1745634645800,-9555.2510966,0.000162,2]
[359012361,1745634645812,-9256.85081149,0.000162,2]
[359012362,1745634645826,-4875.46,0.000162,2]
[359012363,1745634645839,-3915.80345569,0.000162,2]
[359012364,1745634645905,-540.23961161,0.000162,2]
[359012365,1745634645917,-5171.86729433,0.000162,2]
[359012368,1745634775831,475.0,0.00022,120]
[359012393,1745635646095,-794.90349198,0.00014743,2]
[359012397,1745635721674,163.04468616,0.00014001,2]
[359012412,1745635832046,-197.80127434,0.00014001,2]
[359012413,1745635832056,-250.0,0.0001451,2]
[359012414,1745635832067,-501.98904544,0.00014743,2]
[359012415,1745635832153,-299.88972978,0.00014743,2]
[359012416,1745635832164,-300.0,0.00014996,2]
[359012417,1745635832173,-1200.0,0.00014996,2]
[359012418,1745635832184,-18516.15904849,0.00014997,2]
[359012609,1745635846018,-272.19120742,0.00014996,2]
[359012610,1745635846124,-227.80879258,0.00014996,2]
[359012611,1745635846134,-250.16113374,0.00014996,2]
[359012612,1745635846144,-500.0,0.00014996,2]
[359012613,1745635846153,-500.0,0.00014996,2]
[359012614,1745635846163,-500.0,0.00014996,2]
[359012615,1745635846173,-500.0,0.00014996,2]
[359012616,1745635846183,-500.0,0.00014996,2]
[359012617,1745635846193,-500.0,0.00014996,2]
[359012618,1745635846202,-500.0,0.00014996,2]
[359012619,1745635846213,-500.0,0.00014996,2]
[359012620,1745635846222,-500.0,0.00014996,2]
[359012621,1745635846232,-500.0,0.00014996,2]
[359012622,1745635846243,-500.0,0.00014996,2]
[359012623,1745635846252,-500.0,0.00014996,2]
[359012624,1745635846261,-500.0,0.00014996,2]
[359012625,1745635846271,-500.0,0.00014996,2]
[359012626,1745635846280,-500.0,0.00014996,2]
[359012627,1745635846289,-200.91251177,0.00014996,2]
[359012628,1745635846299,-17098.29168416,0.00014997,2]
[359012629,1745635846309,-965.6355973,0.00014998,2]
[359012630,1745635846319,-427.683765,0.00015003,2]
[359012631,1745635846328,-250.0,0.00015014,2]
[359012632,1745635846338,-17685.2631321,0.00015014,2]
[359012633,1745635846347,-165.708908,0.00015238,2]
[359012634,1745635846358,-363.2403501,0.00015256,2]
[359012635,1745635846368,-165.708908,0.00015314,2]
[359012636,1745635846378,-159.6063634,0.00015778,2]
[359012637,1745635846387,-225.06338471,0.000159,2]
[359012638,1745635846396,-151.0,0.00016153,2]
[359012639,1745635846405,-151.0,0.00016153,2]
[359012640,1745635846414,-207.4,0.00016153,2]
[359012641,1745635846425,-300.89726507,0.00016188,2]
[359012642,1745635846435,-23868.38613658,0.000162,2]
[359012714,1745637032746,-2322.1115108,0.00015014,2]
[359012716,1745637032756,-253.5594501,0.00015014,2]
[359012718,1745637032766,-205.1394714,0.000153,2]
[359012719,1745637032775,-213.841882,0.00015311,2]
[359012720,1745637032785,-348.01705784,0.00015311,2]
[359012722,1745637032795,-500.76229935,0.00016,2]
[359012724,1745637032804,-2084.62886194,0.000162,2]
[359012792,1745637038455,-351.27555648,0.000162,2]
[359013416,1745637483216,150.0,0.00015307,120]
[359013417,1745637484015,210.0,0.00016838,120]
[359013418,1745637484823,293.0,0.00018522,120]
[359013419,1745637885702,5058.19456543,0.00025,30]
[359013422,1745638052121,-500.0,0.00015136,2]
[359013423,1745638052143,-500.0,0.00015136,2]
[359013424,1745638052172,-500.0,0.00015136,2]
[359013425,1745638052201,-500.0,0.00015136,2]
[359013426,1745638052223,-500.0,0.00015136,2]
[359013427,1745638052251,-500.0,0.00015136,2]
[359013428,1745638052279,-500.0,0.00015136,2]
[359013429,1745638052301,-176.3188571,0.00015136,2]
[359013443,1745638232426,-1200.0,0.00015134,2]
[359013444,1745638232437,-300.0,0.00015134,2]
[359013445,1745638232447,-1179.76112508,0.00015135,2]
[359013446,1745638232456,-329.67363411,0.00015135,2]
[359013447,1745638232466,-500.0,0.00015135,2]
[359013448,1745638232477,-500.0,0.00015135,2]
[359013449,1745638232487,-500.0,0.00015135,2]
[359013450,1745638232497,-500.0,0.00015135,2]
[359013451,1745638232507,-500.0,0.00015135,2]
[359013452,1745638232517,-500.0,0.00015135,2]
[359013453,1745638232527,-365.75384257,0.00015135,2]
[359013454,1745638232536,-500.0,0.00015135,2]
[359013455,1745638232546,-500.0,0.00015135,2]
[359013456,1745638232556,-500.0,0.00015135,2]
[359013457,1745638232566,-500.0,0.00015135,2]
[359013459,1745638232576,-500.0,0.00015135,2]
[359013461,1745638232587,-500.0,0.00015135,2]
[359013464,1745638232596,-500.0,0.00015135,2]
[359013466,1745638232606,-500.0,0.00015135,2]
[359013468,1745638232616,-500.0,0.00015135,2]
[359013469,1745638232625,-500.0,0.00015135,2]
[359013470,1745638232635,-500.0,0.00015135,2]
[359013471,1745638232644,-500.0,0.00015135,2]
[359013472,1745638232654,-500.0,0.00015135,2]
[359013473,1745638232664,-500.0,0.00015135,2]
[359013474,1745638232674,-485.08376027,0.00015135,2]
[359013475,1745638232684,-3601.6536401,0.0001514,2]
[359013476,1745638232694,-257.0,0.00015209,2]
[359013477,1745638232704,-975.34456652,0.00015209,2]
[359013478,1745638232718,-200.0,0.00015287,4]
[359013479,1745638232729,-213.841883,0.00015323,2]
[359013480,1745638232739,-361.570044,0.000159,2]
[359013481,1745638232750,-361.570044,0.000159,2]
[359013482,1745638232759,-361.570044,0.000159,2]
[359013483,1745638232770,-361.570044,0.000159,2]
[359013484,1745638232780,-361.570044,0.000159,2]
[359013485,1745638232789,-1052.87200434,0.000159,2]
[359013486,1745638232799,-1330.02793959,0.00016169,2]
[359013487,1745638232808,-160.0,0.000162,2]
[359013488,1745638232818,-7208.00048688,0.000162,2]
[359013489,1745638232831,-30093.36434785,0.000162,2]
[359013527,1745638238489,-160.0,0.000162,2]
[359013529,1745638238499,-160.0,0.000162,2]
[359013531,1745638238510,-160.0,0.000162,2]
[359013533,1745638238520,-131.38400069,0.000162,2]
[359013541,1745638238601,-6699.16931625,0.000162,2]
[359013560,1745638242775,-0.01570814,0.000162,2]
[359013568,1745638243497,-2283.12265717,0.000162,2]
[359013573,1745638246400,-8021.26045996,0.000162,2]
[359013574,1745638246456,-1274.69549344,0.000162,2]
[359013575,1745638246468,-50354.61609311,0.000162,2]
[359013586,1745638932710,334.9979989,0.00025,30]
[359013588,1745639232118,-1083.04502849,0.00014933,2]
[359013608,1745639433787,-152.68707532,0.00014833,2]
[359013609,1745639433798,-1028.39381858,0.00014932,2]
[359013610,1745639433808,-499.84958397,0.00014933,2]
[359013611,1745639433819,-152.68707532,0.00014933,2]
[359013612,1745639433829,-1043.5850627,0.00014934,2]
[359013613,1745639433839,-151.0,0.00015025,2]
[359013614,1745639433850,-500.0,0.0001503,2]
[359013615,1745639433861,-500.0,0.0001503,2]
[359013616,1745639433873,-249.07067793,0.0001503,2]
[359013617,1745639433883,-1200.0,0.0001503,2]
[359013618,1745639433893,-300.0,0.0001503,2]
[359013619,1745639433903,-20583.82773087,0.00015031,2]
[359013620,1745639433991,-12530.71460996,0.00015031,2]
[359013621,1745639434004,-16347.53748546,0.00015031,2]
[359013622,1745639434014,-500.0,0.00015033,2]
[359013623,1745639434024,-9072.2677488,0.00015035,2]
[359013624,1745639434035,-152.0,0.00015087,2]
[359013625,1745639434046,-573.20478037,0.00015163,2]
[359013626,1745639434055,-209.9195922,0.00015263,2]
[359013627,1745639434066,-499.84958394,0.00015284,2]
[359013628,1745639434075,-279.38090273,0.00015307,2]
[359013629,1745639434085,-208.16386,0.0001538,2]
[359013630,1745639434095,-208.16386,0.0001538,2]
[359013631,1745639434105,-212.346975,0.0001538,2]
[359013632,1745639434114,-212.346975,0.0001538,2]
[359013633,1745639434125,-1774.8472195,0.0001538,2]
[359013634,1745639434135,-151.0,0.00015525,2]
[359013635,1745639434145,-207.4,0.00015525,2]
[359013636,1745639434156,-361.570044,0.00015541,2]
[359013637,1745639434166,-361.570044,0.00015541,2]
[359013638,1745639434175,-361.570044,0.00015541,2]
[359013639,1745639434186,-361.570044,0.00015541,2]
[359013640,1745639434195,-499.84958394,0.00015636,2]
[359013641,1745639434206,-404.7251728,0.00015952,2]
[359013642,1745639434216,-499.84958394,0.00015987,2]
[359013643,1745639434226,-2393.8353362,0.00016038,2]
[359013644,1745639434236,-361.570044,0.000161,2]
[359013645,1745639434247,-160.0,0.00016135,2]
[359013646,1745639434257,-160.0,0.00016181,2]
[359013647,1745639434266,-160.0,0.00016181,2]
[359013648,1745639434276,-160.0,0.00016181,2]
[359013649,1745639434286,-149430.45338237,0.000162,2]
[359013650,1745639434296,-300.0,0.000162,2]
[359013651,1745639434306,-12582.09293779,0.00016234,2]
[359013652,1745639434316,-313.17372804,0.00016234,2]
[359013653,1745639434326,-840.35238838,0.00016234,2]
[359013654,1745639434336,-160.0,0.00016236,2]
[359013655,1745639434346,-212.346975,0.00016245,2]
[359013656,1745639434355,-212.346975,0.00016245,2]
[359013657,1745639434365,-208.16386,0.00016247,2]
[359013658,1745639434375,-208.16386,0.00016247,2]
[359013659,1745639434385,-5000.0,0.000163,2]
[359013660,1745639434395,-361.570044,0.000163,2]
[359013661,1745639434407,-600.0,0.00016307,2]
[359013662,1745639434417,-499.84958394,0.00016338,2]
[359013663,1745639434426,-179.173,0.0001638,2]
[359013664,1745639434436,-1199.38,0.0001639,3]
[359013665,1745639434446,-599.69,0.0001639,3]
[359013666,1745639434457,-299.84,0.0001639,3]
[359013667,1745639434467,-899.57,0.0001639,3]
[359013668,1745639434478,-190.5992134,0.0001639,2]
[359013669,1745639434488,-151.0,0.00016394,2]
[359013670,1745639434499,-64867.85,0.000164,2]
[359013671,1745639434508,-497.8506506,0.000164,2]
[359013672,1745639434518,-283.74015321,0.000164,2]
[359013673,1745639434535,-77.82989079,0.000164,2]
[359013674,1745639434546,-151.0,0.000164,2]
[359013675,1745639434555,-208.16386,0.000164,2]
[359013676,1745639434566,-208.16386,0.000164,2]
[359013677,1745639434576,-212.346975,0.000164,2]
[359013678,1745639434586,-212.346975,0.000164,2]
[359013679,1745639434596,-160.0,0.00016437,2]
[359013680,1745639434605,-501.61347507,0.00016438,2]
[359013681,1745639434616,-152.019686,0.00016438,2]
[359013682,1745639434626,-151.0,0.00016438,2]
[359013683,1745639434636,-163.618967,0.00016438,2]
[359013684,1745639434646,-151.981378,0.00016438,2]
[359013685,1745639434655,-500.0,0.00016438,2]
[359013686,1745639434665,-500.26545381,0.00016438,2]
[359013687,1745639434674,-500.0,0.00016438,2]
[359013688,1745639434684,-500.0,0.00016438,2]
[359013689,1745639434694,-514.49517871,0.00016438,2]
[359013690,1745639434704,-500.0,0.00016438,2]
[359013691,1745639434713,-500.0,0.00016438,2]
[359013692,1745639434723,-500.0,0.00016438,2]
[359013693,1745639434733,-440.44882247,0.00016438,2]
[359013694,1745639434743,-500.0,0.00016438,2]
[359013695,1745639434752,-504.85086929,0.00016438,2]
[359013696,1745639434761,-509.39493675,0.00016438,2]
[359013697,1745639434771,-500.0,0.00016438,2]
[359013698,1745639434781,-500.0,0.00016438,2]
[359013699,1745639434790,-503.15912559,0.00016438,2]
[359013700,1745639434800,-500.0,0.00016438,2]
[359013701,1745639434810,-591.17107248,0.00016438,2]
[359013702,1745639434820,-511.10943234,0.00016438,2]
[359013703,1745639434830,-507.12417662,0.00016438,2]
[359013704,1745639434840,-259.63950351,0.00016438,2]
[359013705,1745639434850,-505.28846099,0.00016438,2]
[359013706,1745639434861,-504.65328826,0.00016438,2]
[359013707,1745639434871,-508.18021485,0.00016438,2]
[359013708,1745639434881,-503.16052694,0.00016438,2]
[359013709,1745639434892,-502.09529158,0.00016438,2]
[359013710,1745639434902,-505.72110012,0.00016438,2]
[359013711,1745639434912,-500.0,0.00016438,2]
[359013712,1745639434922,-503.95235169,0.00016438,2]
[359013713,1745639434932,-151.0,0.00016438,2]
[359013714,1745639434943,-151.0,0.00016438,2]
[359013715,1745639434954,-172.822142,0.00016438,2]
[359013716,1745639434964,-505.45593653,0.00016438,2]
[359013717,1745639434974,-506.12593989,0.00016438,2]
[359013718,1745639434984,-501.08787589,0.00016438,2]
[359013719,1745639434993,-503.20611355,0.00016438,2]
[359013720,1745639435003,-503.81496479,0.00016438,2]
[359013721,1745639435014,-501.93872922,0.00016438,2]
[359013722,1745639435024,-504.5678434,0.00016438,2]
[359013723,1745639435034,-504.47127119,0.00016438,2]
[359013724,1745639435044,-505.9306108,0.00016438,2]
[359013725,1745639435054,-302.62371996,0.00016438,2]
[359013726,1745639435063,-500.0,0.00016438,2]
[359013727,1745639435073,-503.98585964,0.00016438,2]
[359013728,1745639435083,-275.77438306,0.00016438,2]
[359013729,1745639435093,-504.92250823,0.00016438,2]
[359013730,1745639435103,-507.3102969,0.00016438,2]
[359013731,1745639435112,-500.0,0.00016438,2]
[359013732,1745639435123,-500.0,0.00016438,2]
[359013733,1745639435133,-501.92854955,0.00016438,2]
[359013734,1745639435142,-500.0,0.00016438,2]
[359013735,1745639435152,-500.95921376,0.00016438,2]
[359013736,1745639435162,-500.0,0.00016438,2]
[359013737,1745639435342,-502.12652336,0.00016438,2]
[359013738,1745639435353,-502.70301094,0.00016438,2]
[359013739,1745639435363,-503.89920794,0.00016438,2]
[359013740,1745639435373,-502.38286047,0.00016438,2]
[359013741,1745639435383,-500.0,0.00016438,2]
[359013742,1745639435392,-505.12420971,0.00016438,2]
[359013743,1745639435403,-504.67051018,0.00016438,2]
[359013744,1745639435416,-505.47556742,0.00016438,2]
[359013745,1745639435426,-500.0,0.00016438,2]
[359013746,1745639435435,-504.75751659,0.00016438,2]
[359013747,1745639435445,-500.0,0.00016438,2]
[359013748,1745639435457,-500.0,0.00016438,2]
[359013749,1745639435467,-502.94883964,0.00016438,2]
[359013750,1745639435477,-500.0,0.00016438,2]
[359013751,1745639435488,-505.20521325,0.00016438,2]
[359013752,1745639435498,-504.77415159,0.00016438,2]
[359013753,1745639435509,-503.36499691,0.00016438,2]
[359013754,1745639435519,-352.03777854,0.00016438,2]
[359013755,1745639435528,-500.0,0.00016438,2]
[359013756,1745639435539,-504.10153465,0.00016438,2]
[359013757,1745639435549,-500.0,0.00016438,2]
[359013758,1745639435559,-503.70994711,0.00016438,2]
[359013759,1745639435569,-153.072958,0.00016438,2]
[359013760,1745639435579,-313.3442141,0.00016438,2]
[359013761,1745639435588,-483.96593886,0.00016438,2]
[359013762,1745639435599,-509.91479548,0.00016438,2]
[359013763,1745639435610,-503.1572199,0.00016438,2]
[359013764,1745639435621,-503.16612605,0.00016438,2]